[Event "EYCC Open-U12 2019"]
[Site "Bratislava"]
[Date "2019.08.06"]
[Round "5.36"]
[White "Skreko, Igor"]
[Black "Cnejev, Vladimir-Alexandru"]
[Result "1/2-1/2"]
[ECO "D35"]
[WhiteElo "1688"]
[BlackElo "1907"]
[Annotator "NA"]
[PlyCount "115"]
[EventDate "2019.08.02"]
[EventType "swiss"]
[EventCountry "SVK"]
[SourceTitle "playchess.com"]
[Source "ChessBase"]
[SourceQuality "1"]
[TimeControl "40/5400+30:1800+30"]

1. d4 {[%emt 0:00:00]} d5 {[%emt 0:00:00]} 2. c4 {[%emt 0:00:00]} e6 {[%emt 0:00:00]} 3. Nc3 {[%emt 0:00:00]} Nf6 {[%emt 0:00:00]} 4. cxd5 {[%emt 0:00:00]} exd5 {[%emt 0:00:00]} 5. Bg5 {[%emt 0:00:00]} c6 {[%emt 0:00:13]} 6. e3 {[%emt 0:00:00]} Bf5 {[%emt 0:00:04]} 7. Qf3 Bg6 {[%emt 0:00:06]} 8. Bxf6 {[%emt 0:00:01]} Qxf6 {[%emt 0:00:07]} 9. Qxf6 {[%emt 0:00:04]} gxf6 {[%emt 0:00:03]} 10. h4 {[%emt 0:01:01]} h5 {[%emt 0:03:20]} 11. Nh3 {[%emt 0:11:11]} Nd7 {[%emt 0:01:47]} 12. g3 {[%emt 0:02:06]} Nb6 {[%emt 0:00:31]} 13. Nf4 {[%emt 0:02:22]} Nc8 {[%emt 0:01:57]} 14. Kd2 {[%emt 0:02:29]} Nd6 {[%emt 0:00:11]} 15. Bd3 {[%emt 0:01:11]} f5 {[%emt 0:01:19]} 16. f3 {[%emt 0:04:07]} Be7 {[%emt 0:04:02]} 17. Rab1 {[%emt 0:03:20]} Kd7 {[%emt 0:06:53]} 18. b4 {[%emt 0:01:52]} b5 {[%emt 0:01:34]} 19. a4 {[%emt 0:02:13]} a6 {[%emt 0:03:13]} 20. Rb2 {[%emt 0:04:34]} Rab8 {[%emt 0:11:36]} 21. Ra1 {[%emt 0:09:11]} Rb7 {[%emt 0:01:47]} 22. axb5 {[%emt 0:01:19]} axb5 {[%emt 0:00:13]} 23. Ra5 {[%emt 0:02:04]} Rg8 {[%emt 0:05:40]} 24. Nce2 {[%emt 0:01:55]} Rgb8 {[%emt 0:05:50]} 25. Kc3 {[%emt 0:03:27]} Nc4 {[%emt 0:09:24]} 26. Bxc4 {[%emt 0:00:07]} bxc4 {[%emt 0:00:04]} 27. Ra4 {[%emt 0:04:47]} Bd6 {[%emt 0:01:51]} 28. Nc1 {[%emt 0:12:31]} Ke7 {[%emt 0:15:35]} 29. Na2 {[%emt 0:02:22]} Kf6 {[%emt 0:03:21]} 30. Ra6 {[%emt 0:01:27]} Rb6 {[%emt 0:00:22]} 31. Rxb6 {[%emt 0:01:18]} Rxb6 {[%emt 0:00:01]} 32. Nc1 {[%emt 0:05:11]} Rb8 {[%emt 0:00:58]} 33. Na2 {[%emt 0:01:43]} Kg7 {[%emt 0:05:24]} 34. Nc1 {[%emt 0:06:01]} Kh6 {[%emt 0:01:11]} 35. Nce2 {[%emt 0:01:24]} Rb5 {[%emt 0:03:22]} 36. Ng2 {[%emt 0:01:16]} Rb8 {[%emt 0:02:09]} 37. Ne1 {[%emt 0:01:05]} f6 {[%emt 0:01:19]} 38. Nc2 {[%emt 0:00:17]} Ra8 {[%emt 0:01:41]} 39. f4 {[%emt 0:01:30]} Be8 {[%emt 0:00:08]} 40. Nc1 {[%emt 0:00:00]} Bd7 {[%emt 0:00:00]} 41. Ra2 {[%emt 0:00:55]} Rxa2 {[%emt 0:02:00]} 42. Nxa2 {[%emt 0:00:05]} Bc8 {[%emt 0:00:12]} 43. Kb2 {[%emt 0:00:58]} Kg7 {[%emt 0:00:32]} 44. Nc3 {[%emt 0:01:03]} Ba6 {[%emt 0:00:06]} 45. Na4 {[%emt 0:01:53]} Kf7 {[%emt 0:01:42]} 46. Kc3 {[%emt 0:02:59]} Bb5 {[%emt 0:01:06]} 47. Nb2 {[%emt 0:01:03]} Ke7 {[%emt 0:00:17]} 48. Na3 {[%emt 0:00:33]} Ba6 {[%emt 0:00:18]} 49. Na4 {[%emt 0:01:00]} Bc8 {[%emt 0:01:13]} 50. Nc5 {[%emt 0:01:06]} Bd7 {[%emt 0:01:26]} 51. Nb1 {[%emt 0:02:40]} Ke8 {[%emt 0:02:59]} 52. Kb2 {[%emt 0:02:03]} Ke7 {[%emt 0:01:20]} 53. Ka3 {[%emt 0:00:38]} Bc7 {[%emt 0:00:44]} 54. Ka4 {[%emt 0:01:04]} Bb6 {[%emt 0:01:03]} 55. Nc3 {[%emt 0:01:16]} Kd6 {[%emt 0:00:50]} 56. Nxd7 {[%emt 0:04:58]} Kxd7 {[%emt 0:00:22]} 57. Nb1 {[%emt 0:10:14]} Kd6 {[%emt 0:01:28]} 58. Nc3 {[%emt 0:02:59]} 1/2-1/2

[Event "EYCC Open-U12 2019"]
[Site "Bratislava"]
[Date "2019.08.06"]
[Round "5.37"]
[White "Bunic, Emanuel"]
[Black "Stork, Christopher"]
[Result "0-1"]
[ECO "A57"]
[WhiteElo "1718"]
[BlackElo "1905"]
[Annotator "NA"]
[PlyCount "121"]
[EventDate "2019.08.02"]
[EventType "swiss"]
[EventCountry "SVK"]
[SourceTitle "playchess.com"]
[Source "ChessBase"]
[SourceQuality "1"]
[TimeControl "40/5400+30:1800+30"]

1. d4 {[%emt 0:00:00]} Nf6 {[%emt 0:00:00]} 2. c4 {[%emt 0:00:00]} c5 {[%emt 0:00:00]} 3. d5 {[%emt 0:00:00]} b5 {[%emt 0:00:51]} 4. cxb5 {[%emt 0:00:10]} a6 {[%emt 0:00:17]} 5. b6 {[%emt 0:00:17]} Qxb6 {[%emt 0:00:55]} 6. Nc3 {[%emt 0:00:23]} d6 {[%emt 0:02:46]} 7. e4 {[%emt 0:00:59]} g6 {[%emt 0:02:02]} 8. Bd3 {[%emt 0:01:14]} Bg7 {[%emt 0:01:41]} 9. Nge2 {[%emt 0:00:47]} O-O {[%emt 0:00:31]} 10. O-O {[%emt 0:00:31]} Nbd7 {[%emt 0:02:52]} 11. Bc2 {[%emt 0:04:33]} Bb7 {[%emt 0:07:20]} 12. Kh1 {[%emt 0:05:30]} Rac8 {[%emt 0:01:32]} 13. Rb1 {[%emt 0:06:59]} Rfd8 {[%emt 0:04:21]} 14. Na4 {[%emt 0:03:53]} Qc7 {[%emt 0:00:42]} 15. Bd2 {[%emt 0:01:11]} a5 {[%emt 0:08:40]} 16. Bc3 {[%emt 0:01:07]} Ra8 {[%emt 0:00:58]} 17. Qd2 {[%emt 0:00:53]} Ra7 {[%emt 0:01:01]} 18. b3 {[%emt 0:00:56]} Rda8 {[%emt 0:01:26]} 19. Nb2 {[%emt 0:00:22]} Nb6 {[%emt 0:01:02]} 20. a4 {[%emt 0:00:55]} Ne8 {[%emt 0:05:11]} 21. Nc4 {[%emt 0:00:33]} Nxc4 {[%emt 0:02:43]} 22. bxc4 {[%emt 0:00:10]} Bxc3 {[%emt 0:00:22]} 23. Nxc3 {[%emt 0:00:27]} Ba6 {[%emt 0:01:13]} 24. Bd3 {[%emt 0:20:05]} Nf6 {[%emt 0:01:48]} 25. Nb5 {[%emt 0:00:39]} Bxb5 {[%emt 0:00:38]} 26. Rxb5 {[%emt 0:00:08]} Nd7 {[%emt 0:01:52]} 27. Rfb1 {[%emt 0:00:49]} Rb8 {[%emt 0:03:20]} 28. R1b3 {[%emt 0:01:41]} Rxb5 {[%emt 0:03:51]} 29. Rxb5 {[%emt 0:00:13]} Ra6 {[%emt 0:03:29]} 30. f4 {[%emt 0:01:20]} Qa7 {[%emt 0:00:35]} 31. Qc3 {[%emt 0:01:57]} Nb6 {[%emt 0:02:02]} 32. Qb3 {[%emt 0:01:19]} Qc7 {[%emt 0:02:41]} 33. Kg1 {[%emt 0:01:54]} f6 {[%emt 0:01:22]} 34. Kf2 {[%emt 0:00:40]} Kf7 {[%emt 0:00:29]} 35. Be2 {[%emt 0:02:45]} Na8 {[%emt 0:09:09]} 36. Qc3 {[%emt 0:04:01]} Qa7 {[%emt 0:02:26]} 37. Ke3 {[%emt 0:02:08]} Nc7 {[%emt 0:00:47]} 38. Rb3 {[%emt 0:01:10]} Rb6 {[%emt 0:00:20]} 39. Qb2 {[%emt 0:11:28]} Rb4 {[%emt 0:03:33]} 40. Rxb4 {[%emt 0:00:00]} cxb4+ {[%emt 0:00:00]} 41. Qd4 {[%emt 0:03:36]} Qxd4+ {[%emt 0:04:28]} 42. Kxd4 {[%emt 0:00:10]} Na6 {[%emt 0:00:11]} 43. Bd1 {[%emt 0:20:46]} Nc5 {[%emt 0:03:38]} 44. e5 {[%emt 0:00:25]} fxe5+ {[%emt 0:05:48]} 45. fxe5 {[%emt 0:00:12]} Kg7 {[%emt 0:00:46]} 46. g4 {[%emt 0:02:44]} g5 {[%emt 0:01:52]} 47. e6 {[%emt 0:05:40]} h6 {[%emt 0:01:29]} 48. Ke3 {[%emt 0:04:41]} Kf6 {[%emt 0:04:35]} 49. Kd4 {[%emt 0:00:10]} Kg6 {[%emt 0:07:44]} 50. Ke3 {[%emt 0:00:42]} Kg7 {[%emt 0:00:20]} 51. h3 {[%emt 0:01:16]} Kf6 {[%emt 0:00:45]} 52. Kd4 {[%emt 0:00:20]} b3 {[%emt 0:04:51]} 53. Kc3 {[%emt 0:00:38]} Ke5 {[%emt 0:00:26]} 54. Be2 {[%emt 0:01:23]} Ke4 {[%emt 0:02:11]} 55. Kb2 {[%emt 0:02:31]} Ke3 {[%emt 0:00:58]} 56. Bd1 {[%emt 0:00:23]} Kd3 {[%emt 0:00:25]} 57. Bf3 {[%emt 0:01:34]} Kxc4 {[%emt 0:00:32]} 58. Ka3 {[%emt 0:00:33]} Kc3 {[%emt 0:01:36]} 59. Bd1 {[%emt 0:01:09]} b2 {[%emt 0:02:33]} 60. Ka2 {[%emt 0:00:35]} Kd2 {[%emt 0:00:46]} 61. Bc2 {[%emt 0:01:44]} 0-1

[Event "EYCC Open-U12 2019"]
[Site "Bratislava"]
[Date "2019.08.06"]
[Round "5.38"]
[White "Andreev, Konstantin"]
[Black "Paseka, Matyas"]
[Result "1-0"]
[ECO "D30"]
[WhiteElo "2271"]
[BlackElo "1917"]
[Annotator "NA"]
[PlyCount "71"]
[EventDate "2019.08.02"]
[EventType "swiss"]
[EventCountry "SVK"]
[SourceTitle "playchess.com"]
[Source "ChessBase"]
[SourceQuality "1"]
[TimeControl "40/5400+30:1800+30"]

1. d4 {[%emt 0:00:00]} d5 {[%emt 0:00:00]} 2. c4 {[%emt 0:00:00]} e6 {[%emt 0:00:00]} 3. Nf3 {[%emt 0:00:00]} c5 {[%emt 0:00:00]} 4. g3 {[%emt 0:00:00]} Nc6 {[%emt 0:00:01]} 5. Bg2 {[%emt 0:00:28]} Nf6 {[%emt 0:00:12]} 6. O-O {[%emt 0:00:19]} Be7 {[%emt 0:00:17]} 7. dxc5 {[%emt 0:00:07]} Bxc5 {[%emt 0:00:14]} 8. a3 {[%emt 0:00:06]} O-O {[%emt 0:03:31]} 9. b4 {[%emt 0:00:04]} Be7 {[%emt 0:00:12]} 10. Bb2 {[%emt 0:00:05]} b6 {[%emt 0:04:31]} 11. Nbd2 {[%emt 0:01:43]} Bb7 {[%emt 0:01:06]} 12. cxd5 {[%emt 0:00:44]} Nxd5 {[%emt 0:07:00]} 13. Nc4 {[%emt 0:02:29]} Rc8 {[%emt 0:05:28]} 14. Rc1 {[%emt 0:01:39]} b5 {[%emt 0:18:50]} 15. Ncd2 {[%emt 0:10:26]} Nb6 {[%emt 0:01:38]} 16. Qb3 {[%emt 0:04:09]} Na4 {[%emt 0:04:08]} 17. Ba1 {[%emt 0:01:40]} Qb6 {[%emt 0:09:05]} 18. Bh3 {[%emt 0:14:58]} Rfd8 {[%emt 0:08:22]} 19. Rfd1 {[%emt 0:28:27]} Bf8 {[%emt 0:09:04]} 20. Bxe6 {[%emt 0:03:14]} Rc7 {[%emt 0:09:04]} 21. Ng5 {[%emt 0:02:56]} Rd6 {[%emt 0:14:14]} 22. Bxf7+ {[%emt 0:09:36]} Kh8 {[%emt 0:00:15]} 23. Be5 {[%emt 0:01:09]} Nxe5 {[%emt 0:01:36]} 24. Rxc7 {[%emt 0:08:34]} Qxc7 {[%emt 0:00:17]} 25. Bh5 {[%emt 0:03:53]} Rh6 {[%emt 0:02:38]} 26. Bf3 {[%emt 0:00:55]} Rf6 {[%emt 0:00:41]} 27. Bxb7 {[%emt 0:00:48]} Qxb7 {[%emt 0:00:06]} 28. Nde4 {[%emt 0:00:17]} Rg6 {[%emt 0:00:46]} 29. f4 {[%emt 0:01:19]} Nc4 {[%emt 0:00:31]} 30. Qf3 {[%emt 0:00:35]} Qb6+ {[%emt 0:00:29]} 31. Kh1 {[%emt 0:00:15]} Nab2 {[%emt 0:00:33]} 32. Qh5 {[%emt 0:01:33]} h6 {[%emt 0:00:31]} 33. Rd7 {[%emt 0:02:11]} Rxg5 {[%emt 0:00:33]} 34. fxg5 {[%emt 0:00:31]} Qc6 {[%emt 0:00:26]} 35. Qe8 {[%emt 0:00:09]} Kh7 36. Rxg7+ {[%emt 0:00:16]} 1-0

[Event "EYCC Open-U12 2019"]
[Site "Bratislava"]
[Date "2019.08.06"]
[Round "5.39"]
[White "Asllani, Dorian"]
[Black "Ivanov, Svetlen"]
[Result "0-1"]
[ECO "D20"]
[WhiteElo "1718"]
[BlackElo "1717"]
[Annotator "NA"]
[PlyCount "68"]
[EventDate "2019.08.02"]
[EventType "swiss"]
[EventCountry "SVK"]
[SourceTitle "playchess.com"]
[Source "ChessBase"]
[SourceQuality "1"]
[TimeControl "40/5400+30:1800+30"]

1. d4 {[%emt 0:00:00]} d5 {[%emt 0:00:00]} 2. c4 {[%emt 0:01:18]} dxc4 {[%emt 0:00:00]} 3. Nc3 {[%emt 0:02:24]} Nc6 {[%emt 0:00:29]} 4. e3 {[%emt 0:04:53]} e5 {[%emt 0:04:21]} 5. d5 {[%emt 0:02:01]} Na5 {[%emt 0:01:58]} 6. Qa4+ {[%emt 0:01:09]} c6 {[%emt 0:02:10]} 7. dxc6 {[%emt 0:01:58]} Nxc6 {[%emt 0:01:47]} 8. Bxc4 {[%emt 0:01:19]} Nf6 {[%emt 0:01:27]} 9. Nf3 {[%emt 0:01:09]} Bd6 {[%emt 0:00:58]} 10. O-O {[%emt 0:01:05]} O-O {[%emt 0:01:58]} 11. h3 {[%emt 0:10:08]} a6 {[%emt 0:03:48]} 12. Qc2 {[%emt 0:04:07]} b5 {[%emt 0:08:44]} 13. Bb3 {[%emt 0:01:36]} Bb7 {[%emt 0:01:21]} 14. Rd1 {[%emt 0:01:59]} Qe7 {[%emt 0:03:34]} 15. Qe2 {[%emt 0:03:16]} e4 {[%emt 0:14:46]} 16. Nd2 {[%emt 0:06:08]} Qe5 {[%emt 0:07:50]} 17. Nf1 {[%emt 0:00:40]} Rad8 {[%emt 0:00:52]} 18. a3 {[%emt 0:06:53]} Qg5 {[%emt 0:06:38]} 19. Nd5 {[%emt 0:14:07]} Ne5 {[%emt 0:07:33]} 20. Nf4 {[%emt 0:06:26]} Nd3 {[%emt 0:03:31]} 21. g3 {[%emt 0:03:20]} Ne5 {[%emt 0:03:32]} 22. Bd2 {[%emt 0:02:26]} Nf3+ {[%emt 0:01:23]} 23. Kg2 {[%emt 0:00:17]} Bc8 {[%emt 0:01:15]} 24. Ba5 {[%emt 0:09:07]} Bxf4 {[%emt 0:04:43]} 25. Rxd8 {[%emt 0:06:12]} Bxh3+ {[%emt 0:02:11]} 26. Kxh3 {[%emt 0:00:52]} Ng1+ {[%emt 0:00:50]} 27. Kg2 {[%emt 0:00:05]} Nxe2 {[%emt 0:00:18]} 28. Rxf8+ {[%emt 0:00:27]} Kxf8 {[%emt 0:00:06]} 29. exf4 {[%emt 0:00:14]} Nxf4+ {[%emt 0:00:09]} 30. Kg1 {[%emt 0:00:15]} Ne2+ {[%emt 0:01:18]} 31. Kg2 {[%emt 0:00:28]} Qf5 {[%emt 0:00:25]} 32. Nh2 {[%emt 0:02:37]} Ng4 {[%emt 0:01:45]} 33. Bb6 {[%emt 0:00:35]} Nxh2 {[%emt 0:01:15]} 34. Kxh2 {[%emt 0:00:07]} Qh5+ 0-1

[Event "EYCC Open-U12 2019"]
[Site "Bratislava"]
[Date "2019.08.06"]
[Round "5.40"]
[White "Stevanovic, Jovan"]
[Black "Fizer, Marek"]
[Result "1-0"]
[ECO "A04"]
[WhiteElo "1783"]
[BlackElo "1624"]
[Annotator "NA"]
[PlyCount "119"]
[EventDate "2019.08.02"]
[EventType "swiss"]
[EventCountry "SVK"]
[SourceTitle "playchess.com"]
[Source "ChessBase"]
[SourceQuality "1"]
[TimeControl "40/5400+30:1800+30"]

1. Nf3 {[%emt 0:00:00]} c5 {[%emt 0:00:00]} 2. c4 {[%emt 0:00:27]} Nc6 {[%emt 0:00:25]} 3. Nc3 {[%emt 0:04:13]} e5 {[%emt 0:00:42]} 4. g3 {[%emt 0:00:15]} g6 {[%emt 0:00:20]} 5. Bg2 {[%emt 0:00:09]} Bg7 {[%emt 0:00:51]} 6. O-O {[%emt 0:00:40]} Nge7 {[%emt 0:00:51]} 7. d3 {[%emt 0:01:33]} O-O {[%emt 0:02:00]} 8. Rb1 {[%emt 0:03:23]} Rb8 {[%emt 0:00:39]} 9. a3 {[%emt 0:00:48]} a6 {[%emt 0:00:47]} 10. b4 {[%emt 0:25:50]} cxb4 {[%emt 0:04:26]} 11. axb4 {[%emt 0:00:14]} b5 {[%emt 0:03:37]} 12. c5 {[%emt 0:01:30]} d6 {[%emt 0:01:34]} 13. cxd6 {[%emt 0:05:56]} Qxd6 {[%emt 0:00:56]} 14. Be3 {[%emt 0:00:20]} Qc7 {[%emt 0:04:20]} 15. Bc5 {[%emt 0:02:35]} f5 {[%emt 0:07:04]} 16. Ng5 {[%emt 0:02:44]} Bh6 {[%emt 0:25:52]} 17. Qb3+ {[%emt 0:02:32]} Kg7 {[%emt 0:01:21]} 18. Ne6+ {[%emt 0:00:21]} Bxe6 {[%emt 0:00:22]} 19. Qxe6 {[%emt 0:00:05]} Rf6 {[%emt 0:01:46]} 20. Qa2 {[%emt 0:02:40]} Qc8 {[%emt 0:08:47]} 21. Nd5 {[%emt 0:21:07]} Nxd5 {[%emt 0:01:46]} 22. Qxd5 {[%emt 0:00:07]} Qd8 {[%emt 0:01:26]} 23. Ra1 {[%emt 0:03:08]} Qxd5 {[%emt 0:02:26]} 24. Bxd5 {[%emt 0:00:05]} Nd4 {[%emt 0:15:21]} 25. Ra2 {[%emt 0:01:22]} f4 {[%emt 0:05:38]} 26. Kg2 {[%emt 0:02:32]} Rd8 {[%emt 0:04:46]} 27. Be4 {[%emt 0:00:28]} Kf7 {[%emt 0:00:37]} 28. Bb7 {[%emt 0:02:54]} Rb8 {[%emt 0:03:48]} 29. Bd5+ {[%emt 0:01:38]} Ke8 {[%emt 0:00:38]} 30. e3 {[%emt 0:04:36]} Rf5 {[%emt 0:01:08]} 31. gxf4 exf4 {[%emt 0:00:30]} 32. Bxd4 {[%emt 0:01:00]} Rxd5 {[%emt 0:00:18]} 33. Rxa6 {[%emt 0:00:06]} Bf8 {[%emt 0:00:32]} 34. Rb1 {[%emt 0:00:41]} Rc8 {[%emt 0:00:32]} 35. Re6+ {[%emt 0:00:49]} Kf7 {[%emt 0:00:42]} 36. Rf6+ {[%emt 0:00:06]} Ke7 {[%emt 0:00:11]} 37. Rxf4 {[%emt 0:00:11]} Rc2 {[%emt 0:00:42]} 38. Bc5+ {[%emt 0:00:07]} Rdxc5 {[%emt 0:00:15]} 39. bxc5 {[%emt 0:00:06]} Rxc5 {[%emt 0:00:04]} 40. Rfb4 {[%emt 0:00:00]} Rg5+ {[%emt 0:00:00]} 41. Kf1 {[%emt 0:00:23]} Rh5 {[%emt 0:00:49]} 42. Rxb5 {[%emt 0:00:37]} Rxh2 {[%emt 0:00:08]} 43. d4 {[%emt 0:00:09]} Ke6 {[%emt 0:02:29]} 44. Kg1 {[%emt 0:01:09]} Rh4 {[%emt 0:03:49]} 45. Rb7 {[%emt 0:01:31]} Rg4+ {[%emt 0:00:43]} 46. Kf1 {[%emt 0:00:06]} h5 {[%emt 0:00:07]} 47. R1b6+ {[%emt 0:00:29]} Kd5 {[%emt 0:00:39]} 48. Ke2 {[%emt 0:00:43]} h4 {[%emt 0:02:41]} 49. Kd3 {[%emt 0:00:10]} Bd6 {[%emt 0:00:28]} 50. Rd7 {[%emt 0:00:21]} Ke6 {[%emt 0:00:03]} 51. Rdxd6+ {[%emt 0:00:08]} Ke7 {[%emt 0:01:26]} 52. Rxg6 {[%emt 0:00:06]} Rxg6 {[%emt 0:00:10]} 53. Rxg6 {[%emt 0:00:04]} h3 {[%emt 0:00:11]} 54. Rh6 {[%emt 0:00:04]} h2 {[%emt 0:00:05]} 55. Rxh2 {[%emt 0:00:04]} Kf6 {[%emt 0:00:08]} 56. Rh5 {[%emt 0:00:05]} Kg6 {[%emt 0:00:04]} 57. Ra5 {[%emt 0:00:06]} Kf6 {[%emt 0:00:04]} 58. Ke4 {[%emt 0:00:04]} Ke7 {[%emt 0:00:06]} 59. Ra6 {[%emt 0:00:03]} Kd7 {[%emt 0:00:06]} 60. Kd5 {[%emt 0:00:05]} 1-0

[Event "EYCC Open-U12 2019"]
[Site "Bratislava"]
[Date "2019.08.06"]
[Round "5.41"]
[White "Musaev, Matej Elbek"]
[Black "Franc, Borna"]
[Result "1/2-1/2"]
[ECO "C50"]
[WhiteElo "1693"]
[BlackElo "1826"]
[Annotator "NA"]
[PlyCount "87"]
[EventDate "2019.08.02"]
[EventType "swiss"]
[EventCountry "SVK"]
[SourceTitle "playchess.com"]
[Source "ChessBase"]
[SourceQuality "1"]
[TimeControl "40/5400+30:1800+30"]

1. e4 {[%emt 0:00:00]} e5 {[%emt 0:00:00]} 2. Nf3 {[%emt 0:00:00]} Nc6 {[%emt 0:00:00]} 3. Bc4 {[%emt 0:00:00]} Bc5 {[%emt 0:00:00]} 4. O-O {[%emt 0:00:05]} Nf6 {[%emt 0:00:03]} 5. Re1 {[%emt 0:00:21]} d6 {[%emt 0:00:27]} 6. c3 {[%emt 0:00:08]} Bg4 {[%emt 0:01:02]} 7. h3 {[%emt 0:00:15]} Bxf3 {[%emt 0:03:34]} 8. Qxf3 {[%emt 0:00:22]} Qe7 {[%emt 0:00:39]} 9. d3 {[%emt 0:01:39]} h6 {[%emt 0:01:22]} 10. b4 {[%emt 0:04:25]} Bb6 {[%emt 0:00:22]} 11. a4 {[%emt 0:00:03]} a5 {[%emt 0:02:53]} 12. Bd2 {[%emt 0:01:08]} O-O {[%emt 0:03:59]} 13. b5 {[%emt 0:07:02]} Nd8 {[%emt 0:00:45]} 14. Be3 {[%emt 0:03:06]} Bxe3 {[%emt 0:00:13]} 15. fxe3 {[%emt 0:00:34]} Ne6 {[%emt 0:00:42]} 16. Nd2 {[%emt 0:01:50]} c6 {[%emt 0:02:42]} 17. Qg3 {[%emt 0:05:46]} Nc5 {[%emt 0:06:15]} 18. Nf3 {[%emt 0:14:14]} Nh5 {[%emt 0:16:22]} 19. Qg4 {[%emt 0:00:58]} Nf6 {[%emt 0:00:16]} 20. Qg3 {[%emt 0:00:10]} d5 {[%emt 0:01:39]} 21. Nh4 {[%emt 0:01:26]} Qe6 {[%emt 0:03:45]} 22. Nf5 {[%emt 0:02:40]} Ne8 {[%emt 0:01:05]} 23. Ba2 {[%emt 0:01:16]} Nxd3 {[%emt 0:02:19]} 24. Red1 {[%emt 0:00:08]} Nc5 {[%emt 0:00:12]} 25. Qg4 {[%emt 0:07:57]} Nxe4 {[%emt 0:03:43]} 26. Qxe4 {[%emt 0:01:51]} dxe4 {[%emt 0:00:01]} 27. Bxe6 {[%emt 0:00:11]} fxe6 {[%emt 0:00:04]} 28. Ne7+ {[%emt 0:03:02]} Kh7 {[%emt 0:03:53]} 29. bxc6 {[%emt 0:00:16]} bxc6 {[%emt 0:00:04]} 30. Nxc6 {[%emt 0:00:17]} Rc8 {[%emt 0:00:08]} 31. Nxa5 {[%emt 0:02:45]} Rxc3 {[%emt 0:00:08]} 32. Re1 {[%emt 0:00:00]} Nd6 {[%emt 0:00:36]} 33. Rac1 {[%emt 0:02:18]} Rfc8 {[%emt 0:01:52]} 34. Rxc3 {[%emt 0:01:57]} Rxc3 {[%emt 0:00:02]} 35. Kf2 {[%emt 0:00:41]} Ra3 {[%emt 0:00:46]} 36. Nc6 Rxa4 37. Nxe5 {[%emt 0:00:17]} Nf5 {[%emt 0:01:57]} 38. Nd7 {[%emt 0:00:22]} Ra2+ {[%emt 0:01:07]} 39. Re2 {[%emt 0:00:10]} Ra8 {[%emt 0:01:27]} 40. Nc5 {[%emt 0:00:00]} Rf8 {[%emt 0:00:00]} 41. Nxe6 {[%emt 0:01:45]} Rf6 {[%emt 0:00:44]} 42. Nf4 {[%emt 0:01:24]} Ne7 {[%emt 0:01:00]} 43. Kg1 {[%emt 0:02:31]} g5 {[%emt 0:04:11]} 44. Nh5 {[%emt 0:00:12]} 1/2-1/2

[Event "EYCC Open-U12 2019"]
[Site "Bratislava"]
[Date "2019.08.06"]
[Round "5.42"]
[White "Vilimek, Vit"]
[Black "Venkatesan, Kavin"]
[Result "0-1"]
[ECO "B20"]
[WhiteElo "1523"]
[BlackElo "1797"]
[Annotator "NA"]
[PlyCount "34"]
[EventDate "2019.08.02"]
[EventType "swiss"]
[EventCountry "SVK"]
[SourceTitle "playchess.com"]
[Source "ChessBase"]
[SourceQuality "1"]
[TimeControl "40/5400+30:1800+30"]

1. e4 {[%emt 0:00:00]} c5 {[%emt 0:00:00]} 2. b4 {[%emt 0:00:00]} cxb4 {[%emt 0:01:10]} 3. Nf3 {[%emt 0:00:00]} d6 {[%emt 0:02:46]} 4. a3 {[%emt 0:00:00]} bxa3 {[%emt 0:01:02]} 5. Nxa3 {[%emt 0:00:22]} Nf6 {[%emt 0:03:08]} 6. d3 {[%emt 0:01:40]} g6 {[%emt 0:00:33]} 7. Be3 {[%emt 0:02:12]} Bg7 {[%emt 0:00:36]} 8. h3 {[%emt 0:06:22]} O-O {[%emt 0:01:56]} 9. Nc4 {[%emt 0:02:17]} Nbd7 {[%emt 0:02:01]} 10. Qc1 {[%emt 0:31:46]} d5 {[%emt 0:10:44]} 11. exd5 {[%emt 0:04:31]} Nxd5 {[%emt 0:00:52]} 12. Bh6 {[%emt 0:03:16]} Bc3+ {[%emt 0:03:54]} 13. Ncd2 {[%emt 0:00:23]} Bxa1 {[%emt 0:03:24]} 14. Qxa1 {[%emt 0:00:07]} N7f6 {[%emt 0:00:21]} 15. h4 {[%emt 0:19:57]} Re8 {[%emt 0:02:47]} 16. h5 {[%emt 0:03:39]} e5 {[%emt 0:02:19]} 17. Qa4 {[%emt 0:03:10]} e4 {[%emt 0:01:49]} 0-1

[Event "EYCC Open-U12 2019"]
[Site "Bratislava"]
[Date "2019.08.06"]
[Round "5.43"]
[White "Leal Prado, David Elias"]
[Black "Zlatkov, Anton"]
[Result "1-0"]
[ECO "D35"]
[WhiteElo "1741"]
[BlackElo "1782"]
[Annotator "NA"]
[PlyCount "73"]
[EventDate "2019.08.02"]
[EventType "swiss"]
[EventCountry "SVK"]
[SourceTitle "playchess.com"]
[Source "ChessBase"]
[SourceQuality "1"]
[TimeControl "40/5400+30:1800+30"]

1. d4 {[%emt 0:00:00]} d5 {[%emt 0:00:00]} 2. c4 {[%emt 0:00:30]} e6 {[%emt 0:00:30]} 3. Nc3 Nf6 4. cxd5 exd5 5. Bg5 Be7 6. e3 O-O 7. Bd3 c6 8. Qc2 Nbd7 9. Nge2 Re8 10. O-O Nf8 11. f3 Be6 12. e4 Qb6 13. Kh1 Rad8 14. e5 N6d7 15. Bxe7 Rxe7 16. h3 g6 17. f4 f5 18. a3 a6 19. Na4 Qa7 20. b4 Nb8 21. Rfc1 Rc8 22. Rg1 h5 23. g4 hxg4 24. hxg4 Rh7+ 25. Kg2 Rg7 26. gxf5 gxf5+ 27. Kf2 b5 28. Nc5 Qe7 29. Rxg7+ Kxg7 30. Rg1+ Kf7 31. Bxf5 Qh4+ 32. Ke3 Qh6 33. Nxe6 Nxe6 34. Bxe6+ Qxe6 35. Qh7+ Kf8 36. f5 Qf7 37. Qh8+ 1-0

[Event "EYCC Open-U12 2019"]
[Site "Bratislava"]
[Date "2019.08.06"]
[Round "5.44"]
[White "Lye, Sverre"]
[Black "Werner, Hong Quan Dan"]
[Result "0-1"]
[ECO "B33"]
[WhiteElo "1839"]
[BlackElo "1734"]
[Annotator "NA"]
[PlyCount "70"]
[EventDate "2019.08.02"]
[EventType "swiss"]
[EventCountry "SVK"]
[SourceTitle "playchess.com"]
[Source "ChessBase"]
[SourceQuality "1"]
[TimeControl "40/5400+30:1800+30"]

1. e4 {[%emt 0:00:00]} c5 {[%emt 0:00:00]} 2. Nf3 {[%emt 0:00:00]} Nc6 {[%emt 0:00:23]} 3. d4 {[%emt 0:00:22]} cxd4 {[%emt 0:00:26]} 4. Nxd4 {[%emt 0:00:08]} Nf6 {[%emt 0:00:10]} 5. Nc3 {[%emt 0:00:18]} e5 {[%emt 0:00:36]} 6. Ndb5 {[%emt 0:00:34]} d6 {[%emt 0:00:57]} 7. Bg5 {[%emt 0:03:58]} a6 {[%emt 0:00:15]} 8. Na3 {[%emt 0:00:17]} b5 {[%emt 0:00:33]} 9. Nd5 {[%emt 0:00:45]} Qa5+ {[%emt 0:02:37]} 10. Bd2 {[%emt 0:07:10]} Qd8 {[%emt 0:00:28]} 11. Bg5 {[%emt 0:00:32]} Be7 {[%emt 0:00:24]} 12. Bxf6 {[%emt 0:01:56]} Bxf6 {[%emt 0:00:44]} 13. c3 {[%emt 0:02:02]} Ne7 {[%emt 0:03:12]} 14. Nxf6+ {[%emt 0:06:48]} gxf6 {[%emt 0:00:11]} 15. Be2 {[%emt 0:02:23]} Rg8 {[%emt 0:02:34]} 16. O-O {[%emt 0:06:45]} f5 {[%emt 0:02:11]} 17. exf5 {[%emt 0:03:14]} Bxf5 {[%emt 0:00:43]} 18. Nc2 {[%emt 0:02:31]} Be6 {[%emt 0:05:05]} 19. a4 {[%emt 0:03:00]} bxa4 {[%emt 0:13:07]} 20. Rxa4 {[%emt 0:03:56]} d5 {[%emt 0:01:59]} 21. Kh1 {[%emt 0:07:12]} Qb6 {[%emt 0:02:09]} 22. Qa1 {[%emt 0:04:01]} Bc8 {[%emt 0:09:58]} 23. Ra5 {[%emt 0:04:25]} Qg6 {[%emt 0:00:41]} 24. Ne1 {[%emt 0:01:12]} Bb7 {[%emt 0:06:34]} 25. Bd3 {[%emt 0:02:13]} Qg4 {[%emt 0:12:31]} 26. Bxh7 {[%emt 0:07:23]} Rh8 {[%emt 0:01:49]} 27. Bd3 {[%emt 0:02:57]} e4 {[%emt 0:00:25]} 28. Bxa6 {[%emt 0:01:50]} Rxa6 {[%emt 0:00:59]} 29. Rxa6 {[%emt 0:00:12]} Qe2 {[%emt 0:00:19]} 30. Rg1 {[%emt 0:10:35]} Bxa6 {[%emt 0:00:50]} 31. c4 {[%emt 0:01:39]} Bc8 {[%emt 0:07:35]} 32. Qa4+ {[%emt 0:01:55]} Kf8 {[%emt 0:00:25]} 33. Qb4 {[%emt 0:00:31]} Rxh2+ {[%emt 0:00:32]} 34. Kxh2 {[%emt 0:00:08]} Qh5+ {[%emt 0:00:10]} 35. Kg3 {[%emt 0:00:06]} Qg4+ {[%emt 0:00:00] Kh4 Qxh4} 0-1